[Event "Titled Tuesday Blitz August 15 Late 2023"]
[White "Volovich, Vasily"]
[Black "Vafin, Ayrat"]
[WhiteFideId "34169676"]
[BlackFideId "4146530"]
[WhiteElo "2704"]
[BlackElo "2449"]
[Result "1-0"]
[Round "7"]
[TimeControl "180+1"]
[Date "2023.08.15"]
[WhiteClock "0:00:05"]
[BlackClock "0:00:06"]
[Board "42"]

1. e4 {[%clk 0:02:56]}  e5 {[%clk 0:03:00]} 2. Nf3 {[%clk 0:02:54]}  Nf6 {[%clk 0:03:00]} 3. d4 {[%clk 0:02:51]}  Nxe4 {[%clk 0:03:00]} 4. Bd3 {[%clk 0:02:51]}  d5 {[%clk 0:02:59]} 5. Nxe5 {[%clk 0:02:51]}  Nd7 {[%clk 0:03:00]} 6. Nxd7 {[%clk 0:02:50]}  Bxd7 {[%clk 0:03:01]} 7. O-O {[%clk 0:02:51]}  Bd6 {[%clk 0:03:01]} 8. c4 {[%clk 0:02:51]}  c6 {[%clk 0:03:00]} 9. cxd5 {[%clk 0:02:51]}  cxd5 {[%clk 0:03:01]} 10. Nc3 {[%clk 0:02:52]}  Nxc3 {[%clk 0:02:59]} 11. bxc3 {[%clk 0:02:53]}  O-O {[%clk 0:02:59]} 12. Qh5 {[%clk 0:02:54]}  f5 {[%clk 0:02:43]} 13. Qf3 {[%clk 0:02:54]}  Bc6 {[%clk 0:02:40]} 14. Bf4 {[%clk 0:02:53]}  Qc7 {[%clk 0:02:20]} 15. Bxd6 {[%clk 0:02:48]}  Qxd6 {[%clk 0:02:21]} 16. Rfe1 {[%clk 0:02:45]}  g6 {[%clk 0:02:21]} 17. h4 {[%clk 0:02:31]}  Rae8 {[%clk 0:02:19]} 18. h5 {[%clk 0:02:27]}  Rxe1+ {[%clk 0:02:19]} 19. Rxe1 {[%clk 0:02:26]}  Re8 {[%clk 0:02:20]} 20. Rxe8+ {[%clk 0:02:25]}  Bxe8 {[%clk 0:02:20]} 21. Qe3 {[%clk 0:02:22]}  Bd7 {[%clk 0:02:09]} 22. h6 {[%clk 0:01:58]}  f4 {[%clk 0:01:59]} 23. Qe2 {[%clk 0:01:40]}  Qe6 {[%clk 0:01:51]} 24. Qf3 {[%clk 0:00:52]}  g5 {[%clk 0:01:29]} 25. Qh5 {[%clk 0:00:51]}  Qe1+ {[%clk 0:00:34]} 26. Kh2 {[%clk 0:00:51]}  Qe7 {[%clk 0:00:15]} 27. Qf3 {[%clk 0:00:21]}  Qd6 {[%clk 0:00:14]} 28. Qh5 {[%clk 0:00:20]}  Qe7 {[%clk 0:00:15]} 29. Be2 {[%clk 0:00:19]}  Be8 {[%clk 0:00:13]} 30. Qg4 {[%clk 0:00:19]}  Qf6 {[%clk 0:00:11]} 31. Qc8 {[%clk 0:00:18]}  Qxh6+ {[%clk 0:00:11]} 32. Kg1 {[%clk 0:00:18]}  Qf8 {[%clk 0:00:10]} 33. Qxb7 {[%clk 0:00:19]}  Bf7 {[%clk 0:00:09]} 34. Qxa7 {[%clk 0:00:19]}  Qe8 {[%clk 0:00:09]} 35. Qa6 {[%clk 0:00:04]}  Qb8 {[%clk 0:00:08]} 36. Qf6 {[%clk 0:00:02]}  Qb1+ {[%clk 0:00:07]} 37. Kh2 {[%clk 0:00:03]}  Qe4 {[%clk 0:00:07]} 38. Qxg5+ {[%clk 0:00:03]}  Kf8 {[%clk 0:00:08]} 39. Bf3 {[%clk 0:00:04]}  Qe1 {[%clk 0:00:03]} 40. Qxf4 {[%clk 0:00:02]}  Qxf2 {[%clk 0:00:04]} 41. Qb8+ {[%clk 0:00:02]}  Kg7 {[%clk 0:00:04]} 42. Qg3+ {[%clk 0:00:02]}  Qxg3+ {[%clk 0:00:03]} 43. Kxg3 {[%clk 0:00:03]}  Kf6 {[%clk 0:00:04]} 44. Kf4 {[%clk 0:00:04]}  Ke6 {[%clk 0:00:05]} 45. a4 {[%clk 0:00:04]}  Bg6 {[%clk 0:00:04]} 46. a5 {[%clk 0:00:04]}  Bd3 {[%clk 0:00:05]} 47. Kg5 {[%clk 0:00:04]}  Kd6 {[%clk 0:00:04]} 48. Kh6 {[%clk 0:00:04]}  Kc6 {[%clk 0:00:05]} 49. a6 {[%clk 0:00:04]}  Bxa6 {[%clk 0:00:04]} 50. Kxh7 {[%clk 0:00:05]}  Bd3+ {[%clk 0:00:05]} 51. Kh6 {[%clk 0:00:05]}  Bc4 {[%clk 0:00:06]} 52. g4 {[%clk 0:00:05]}  Kd6 {[%clk 0:00:07]} 53. g5 {[%clk 0:00:05]}  Ke7 {[%clk 0:00:08]} 54. g6 {[%clk 0:00:05]}  Kf6 {[%clk 0:00:08]} 55. g7 {[%clk 0:00:06]}  Bd3 {[%clk 0:00:06]} 56. g8=Q {[%clk 0:00:05]} 1-0


[Site "https://www.chess.com"]

[Event "Titled Tuesday Blitz August 15 Late 2023"]
[White "Korchmar, Vasiliy"]
[Black "Delorme, Laurie"]
[WhiteFideId "24131750"]
[BlackFideId "630829"]
[WhiteElo "2692"]
[BlackElo "2327"]
[Result "0-1"]
[Round "7"]
[TimeControl "180+1"]
[Date "2023.08.15"]
[WhiteClock "0:00:00"]
[BlackClock "0:00:06"]
[Board "44"]

1. e4 {[%clk 0:03:00]}  c5 {[%clk 0:02:59]} 2. d4 {[%clk 0:02:59]}  cxd4 {[%clk 0:02:59]} 3. Qxd4 {[%clk 0:03:00]}  Nc6 {[%clk 0:02:58]} 4. Qd3 {[%clk 0:03:01]}  Nf6 {[%clk 0:02:57]} 5. Nc3 {[%clk 0:03:01]}  d6 {[%clk 0:02:56]} 6. Nf3 {[%clk 0:03:01]}  e6 {[%clk 0:02:37]} 7. Bf4 {[%clk 0:03:00]}  Be7 {[%clk 0:02:33]} 8. O-O-O {[%clk 0:03:00]}  e5 {[%clk 0:02:33]} 9. Bg5 {[%clk 0:03:00]}  Be6 {[%clk 0:02:31]} 10. Bxf6 {[%clk 0:03:00]}  gxf6 {[%clk 0:02:27]} 11. Nd5 {[%clk 0:03:01]}  Rc8 {[%clk 0:02:24]} 12. a3 {[%clk 0:02:54]}  a6 {[%clk 0:02:11]} 13. Kb1 {[%clk 0:02:52]}  b5 {[%clk 0:01:58]} 14. c3 {[%clk 0:02:38]}  Na5 {[%clk 0:01:57]} 15. Qe3 {[%clk 0:02:31]}  Nc4 {[%clk 0:01:49]} 16. Bxc4 {[%clk 0:02:31]}  Rxc4 {[%clk 0:01:44]} 17. Rd2 {[%clk 0:02:19]}  Rg8 {[%clk 0:01:41]} 18. g3 {[%clk 0:02:17]}  Rg4 {[%clk 0:01:39]} 19. Nxe7 {[%clk 0:02:04]}  Kxe7 {[%clk 0:01:34]} 20. Rhd1 {[%clk 0:02:04]}  Rgxe4 {[%clk 0:01:13]} 21. Qa7+ {[%clk 0:02:04]}  Qc7 {[%clk 0:01:02]} 22. Qxa6 {[%clk 0:02:01]}  Rc6 {[%clk 0:00:55]} 23. Qa8 {[%clk 0:01:47]}  Rec4 {[%clk 0:00:43]} 24. Nh4 {[%clk 0:01:35]}  d5 {[%clk 0:00:34]} 25. Rxd5 {[%clk 0:01:29]}  Bxd5 {[%clk 0:00:32]} 26. Rxd5 {[%clk 0:01:30]}  Ke6 {[%clk 0:00:19]} 27. Rd2 {[%clk 0:01:24]}  Qe7 {[%clk 0:00:08]} 28. Qg8 {[%clk 0:01:13]}  Rd6 {[%clk 0:00:07]} 29. Re2 {[%clk 0:01:01]}  Rd1+ {[%clk 0:00:07]} 30. Kc2 {[%clk 0:01:00]}  Qd7 {[%clk 0:00:07]} 31. Qxh7 {[%clk 0:01:01]}  Qd5 {[%clk 0:00:04]} 32. Qf5+ {[%clk 0:00:35]}  Ke7 {[%clk 0:00:04]} 33. f4 {[%clk 0:00:36]}  Ra1 {[%clk 0:00:03]} 34. Rd2 {[%clk 0:00:34]}  Qe4+ {[%clk 0:00:04]} 35. Qxe4 {[%clk 0:00:34]}  Rxe4 {[%clk 0:00:05]} 36. Nf5+ {[%clk 0:00:26]}  Ke6 {[%clk 0:00:05]} 37. Ng7+ {[%clk 0:00:23]}  Ke7 {[%clk 0:00:05]} 38. Nh5 {[%clk 0:00:11]}  Ree1 {[%clk 0:00:04]} 39. fxe5 {[%clk 0:00:10]}  fxe5 {[%clk 0:00:04]} 40. g4 {[%clk 0:00:05]}  f6 {[%clk 0:00:03]} 41. Ng3 {[%clk 0:00:05]}  e4 {[%clk 0:00:03]} 42. Nf5+ {[%clk 0:00:02]}  Ke6 {[%clk 0:00:04]} 43. Rd6+ {[%clk 0:00:02]}  Ke5 {[%clk 0:00:04]} 44. Rd8 {[%clk 0:00:03]}  Re2+ {[%clk 0:00:04]} 45. Kb3 {[%clk 0:00:03]}  Rb1 {[%clk 0:00:05]} 46. Re8+ {[%clk 0:00:03]}  Kf4 {[%clk 0:00:05]} 47. Kb4 {[%clk 0:00:03]}  Rexb2+ {[%clk 0:00:05]} 48. Kc5 {[%clk 0:00:03]}  Rb3 {[%clk 0:00:06]} 49. Nd4 {[%clk 0:00:02]}  Rxc3+ {[%clk 0:00:06]} 50. Kd5 {[%clk 0:00:03]}  Rd1 {[%clk 0:00:05]} 51. Rxe4+ {[%clk 0:00:00]}  Kg5 {[%clk 0:00:06]} 0-1


[Site "https://www.chess.com"]

[Event "Titled Tuesday Blitz August 15 Late 2023"]
[White "Troff, Kayden"]
[Black "Silvestre, Christian"]
[WhiteFideId "2047896"]
[BlackFideId "30956269"]
[WhiteElo "2761"]
[BlackElo "2386"]
[Result "1/2-1/2"]
[Round "7"]
[TimeControl "180+1"]
[Date "2023.08.15"]
[WhiteClock "0:00:08"]
[BlackClock "0:00:20"]
[Board "45"]

1. d4 {[%clk 0:03:00]}  Nf6 {[%clk 0:02:56]} 2. Nf3 {[%clk 0:03:00]}  d6 {[%clk 0:02:55]} 3. Bg5 {[%clk 0:02:54]}  g6 {[%clk 0:02:56]} 4. Bxf6 {[%clk 0:02:51]}  exf6 {[%clk 0:02:56]} 5. g3 {[%clk 0:02:50]}  f5 {[%clk 0:02:57]} 6. Bg2 {[%clk 0:02:50]}  Bg7 {[%clk 0:02:56]} 7. O-O {[%clk 0:02:49]}  O-O {[%clk 0:02:56]} 8. e3 {[%clk 0:02:49]}  Bd7 {[%clk 0:02:56]} 9. c4 {[%clk 0:02:48]}  Bc6 {[%clk 0:02:56]} 10. Nc3 {[%clk 0:02:47]}  Bxf3 {[%clk 0:02:51]} 11. Bxf3 {[%clk 0:02:40]}  c6 {[%clk 0:02:51]} 12. b4 {[%clk 0:02:32]}  Nd7 {[%clk 0:02:50]} 13. b5 {[%clk 0:02:31]}  Rc8 {[%clk 0:02:49]} 14. bxc6 {[%clk 0:02:29]}  bxc6 {[%clk 0:02:49]} 15. Rb1 {[%clk 0:02:26]}  c5 {[%clk 0:02:45]} 16. Nb5 {[%clk 0:02:14]}  cxd4 {[%clk 0:02:43]} 17. Nxd6 {[%clk 0:02:11]}  Rb8 {[%clk 0:02:40]} 18. exd4 {[%clk 0:01:46]}  Rxb1 {[%clk 0:02:38]} 19. Qxb1 {[%clk 0:01:45]}  Bxd4 {[%clk 0:02:38]} 20. Rd1 {[%clk 0:01:43]}  Ne5 {[%clk 0:02:25]} 21. Bd5 {[%clk 0:00:51]}  Qxd6 {[%clk 0:02:17]} 22. Rxd4 {[%clk 0:00:49]}  Nf3+ {[%clk 0:02:16]} 23. Bxf3 {[%clk 0:00:48]}  Qxd4 {[%clk 0:02:16]} 24. Bd5 {[%clk 0:00:48]}  Qb6 {[%clk 0:02:07]} 25. Qe1 {[%clk 0:00:45]}  Qc5 {[%clk 0:02:00]} 26. Qe5 {[%clk 0:00:43]}  Qc8 {[%clk 0:01:52]} 27. Qe7 {[%clk 0:00:39]}  a5 {[%clk 0:01:39]} 28. c5 {[%clk 0:00:16]}  Qd8 {[%clk 0:01:36]} 29. Qb7 {[%clk 0:00:12]}  Qb8 {[%clk 0:01:18]} 30. Qe7 {[%clk 0:00:11]}  Qd8 {[%clk 0:01:10]} 31. Qb7 {[%clk 0:00:11]}  Kg7 {[%clk 0:01:06]} 32. Kg2 {[%clk 0:00:09]}  Qc8 {[%clk 0:00:58]} 33. Qb2+ {[%clk 0:00:09]}  Kg8 {[%clk 0:00:55]} 34. c6 {[%clk 0:00:10]}  Qc7 {[%clk 0:00:55]} 35. Qf6 {[%clk 0:00:10]}  Rb8 {[%clk 0:00:49]} 36. h4 {[%clk 0:00:09]}  h5 {[%clk 0:00:48]} 37. Qd4 {[%clk 0:00:08]}  Rd8 {[%clk 0:00:45]} 38. Qc4 {[%clk 0:00:08]}  Rd6 {[%clk 0:00:41]} 39. Qc5 {[%clk 0:00:08]}  Kg7 {[%clk 0:00:39]} 40. Bf3 {[%clk 0:00:08]}  Re6 {[%clk 0:00:34]} 41. Qc3+ {[%clk 0:00:08]}  Kg8 {[%clk 0:00:32]} 42. Qc4 {[%clk 0:00:08]}  Re5 {[%clk 0:00:31]} 43. Qd4 {[%clk 0:00:08]}  Re7 {[%clk 0:00:31]} 44. Qf6 {[%clk 0:00:08]}  Re6 {[%clk 0:00:30]} 45. Qc3 {[%clk 0:00:08]}  Re5 {[%clk 0:00:29]} 46. Qd4 {[%clk 0:00:08]}  Re7 {[%clk 0:00:28]} 47. Bd5 {[%clk 0:00:08]}  Re5 {[%clk 0:00:27]} 48. Qc4 {[%clk 0:00:08]}  Kg7 {[%clk 0:00:27]} 49. Qc3 {[%clk 0:00:08]}  Kg8 {[%clk 0:00:25]} 50. Bf3 {[%clk 0:00:08]}  Re6 {[%clk 0:00:23]} 51. Qc5 {[%clk 0:00:08]}  Re5 {[%clk 0:00:22]} 52. Qc4 {[%clk 0:00:08]}  Kg7 {[%clk 0:00:22]} 53. Qd4 {[%clk 0:00:08]}  Kg8 {[%clk 0:00:22]} 54. Qc3 {[%clk 0:00:08]}  Re7 {[%clk 0:00:21]} 55. Bd5 {[%clk 0:00:08]}  Re5 {[%clk 0:00:20]} 56. Qc4 {[%clk 0:00:09]}  Kg7 {[%clk 0:00:20]} 57. Kh2 {[%clk 0:00:08]}  Kg8 {[%clk 0:00:20]} 58. Kg2 {[%clk 0:00:08]} 1/2-1/2


[Site "https://www.chess.com"]

[Event "Titled Tuesday Blitz August 15 Late 2023"]
[White "subham777"]
[Black "Matinian, Nikita"]
[BlackFideId "24129100"]
[WhiteElo "2539"]
[BlackElo "2713"]
[Result "0-1"]
[Round "7"]
[TimeControl "180+1"]
[Date "2023.08.15"]
[WhiteClock "0:00:00"]
[BlackClock "0:00:48"]
[Board "46"]

1. e4 {[%clk 0:03:00]}  d6 {[%clk 0:02:59]} 2. d4 {[%clk 0:03:00]}  g6 {[%clk 0:02:59]} 3. Nc3 {[%clk 0:02:58]}  a6 {[%clk 0:02:59]} 4. Be3 {[%clk 0:02:57]}  b5 {[%clk 0:03:00]} 5. a3 {[%clk 0:02:57]}  Bg7 {[%clk 0:02:59]} 6. Qd2 {[%clk 0:02:58]}  Nd7 {[%clk 0:03:00]} 7. g3 {[%clk 0:02:57]}  Rb8 {[%clk 0:02:59]} 8. Bg2 {[%clk 0:02:57]}  c5 {[%clk 0:02:57]} 9. dxc5 {[%clk 0:02:50]}  dxc5 {[%clk 0:02:57]} 10. Rd1 {[%clk 0:02:44]}  b4 {[%clk 0:02:53]} 11. axb4 {[%clk 0:02:37]}  cxb4 {[%clk 0:02:54]} 12. Nd5 {[%clk 0:02:31]}  Bxb2 {[%clk 0:02:47]} 13. Ne2 {[%clk 0:02:27]}  Ngf6 {[%clk 0:02:45]} 14. Bf4 {[%clk 0:02:06]}  Nxd5 {[%clk 0:02:28]} 15. Bxb8 {[%clk 0:01:50]}  Nc3 {[%clk 0:02:24]} 16. Be5 {[%clk 0:01:38]}  Nxd1 {[%clk 0:02:23]} 17. Bxh8 {[%clk 0:01:32]}  Bxh8 {[%clk 0:02:17]} 18. Qxd1 {[%clk 0:01:29]}  Nc5 {[%clk 0:02:10]} 19. Qb1 {[%clk 0:01:20]}  a5 {[%clk 0:02:09]} 20. O-O {[%clk 0:01:19]}  Ba6 {[%clk 0:02:09]} 21. Rd1 {[%clk 0:01:14]}  Qb6 {[%clk 0:02:06]} 22. Nf4 {[%clk 0:01:13]}  e6 {[%clk 0:02:04]} 23. Qa2 {[%clk 0:00:59]}  a4 {[%clk 0:02:00]} 24. Bf1 {[%clk 0:00:48]}  Bb7 {[%clk 0:01:39]} 25. Nd3 {[%clk 0:00:43]}  b3 {[%clk 0:01:27]} 26. cxb3 {[%clk 0:00:36]}  axb3 {[%clk 0:01:28]} 27. Qa3 {[%clk 0:00:35]}  Nxe4 {[%clk 0:01:24]} 28. Rb1 {[%clk 0:00:24]}  Nd2 {[%clk 0:01:19]} 29. Rb2 {[%clk 0:00:13]}  Bxb2 {[%clk 0:01:11]} 30. Qxb2 {[%clk 0:00:14]}  Nf3+ {[%clk 0:01:11]} 31. Kh1 {[%clk 0:00:13]}  Nd4+ {[%clk 0:00:55]} 32. Kg1 {[%clk 0:00:10]}  Qc6 {[%clk 0:00:49]} 33. f3 {[%clk 0:00:01]}  Nxf3+ {[%clk 0:00:49]} 34. Kf2 {[%clk 0:00:00]}  Qb6+ {[%clk 0:00:48]} 0-1


[Site "https://www.chess.com"]

[Event "Titled Tuesday Blitz August 15 Late 2023"]
[White "Castella Garcia, Fausto"]
[Black "Dourerassou, Jonathan"]
[WhiteFideId "3501922"]
[BlackFideId "628050"]
[WhiteElo "2510"]
[BlackElo "2667"]
[Result "0-1"]
[Round "7"]
[TimeControl "180+1"]
[Date "2023.08.15"]
[WhiteClock "0:00:00"]
[BlackClock "0:00:13"]
[Board "48"]

1. e4 {[%clk 0:03:00]}  c5 {[%clk 0:02:59]} 2. Nf3 {[%clk 0:03:00]}  d6 {[%clk 0:02:59]} 3. d4 {[%clk 0:03:00]}  cxd4 {[%clk 0:03:00]} 4. Nxd4 {[%clk 0:03:00]}  Nf6 {[%clk 0:03:00]} 5. Nc3 {[%clk 0:03:01]}  g6 {[%clk 0:03:00]} 6. f4 {[%clk 0:03:00]}  Bg7 {[%clk 0:03:00]} 7. e5 {[%clk 0:02:59]}  dxe5 {[%clk 0:02:59]} 8. fxe5 {[%clk 0:03:00]}  Ng4 {[%clk 0:02:47]} 9. Bb5+ {[%clk 0:02:58]}  Nc6 {[%clk 0:02:20]} 10. Nxc6 {[%clk 0:02:56]}  Qxd1+ {[%clk 0:02:18]} 11. Nxd1 {[%clk 0:02:55]}  a6 {[%clk 0:02:14]} 12. Ba4 {[%clk 0:02:28]}  Bd7 {[%clk 0:02:14]} 13. h3 {[%clk 0:02:28]}  Nh6 {[%clk 0:02:07]} 14. Nxe7 {[%clk 0:02:14]}  Bxa4 {[%clk 0:01:56]} 15. Nd5 {[%clk 0:02:12]}  Rd8 {[%clk 0:01:53]} 16. N1c3 {[%clk 0:02:03]}  Bc6 {[%clk 0:01:51]} 17. Nf6+ {[%clk 0:01:37]}  Bxf6 {[%clk 0:01:40]} 18. exf6 {[%clk 0:01:38]}  Nf5 {[%clk 0:01:36]} 19. O-O {[%clk 0:01:24]}  O-O {[%clk 0:01:36]} 20. g4 {[%clk 0:01:11]}  Nd4 {[%clk 0:01:32]} 21. Bh6 {[%clk 0:01:11]}  Rfe8 {[%clk 0:01:28]} 22. Rad1 {[%clk 0:01:05]}  Nxc2 {[%clk 0:01:15]} 23. Rxd8 {[%clk 0:00:50]}  Rxd8 {[%clk 0:01:16]} 24. Rf2 {[%clk 0:00:41]}  Nd4 {[%clk 0:01:15]} 25. Kh2 {[%clk 0:00:41]}  Nf3+ {[%clk 0:01:10]} 26. Kg3 {[%clk 0:00:41]}  Rd3 {[%clk 0:01:09]} 27. Kf4 {[%clk 0:00:39]}  Nd4 {[%clk 0:01:06]} 28. h4 {[%clk 0:00:34]}  Nf3 {[%clk 0:00:46]} 29. Bg5 {[%clk 0:00:26]}  Kf8 {[%clk 0:00:34]} 30. Re2 {[%clk 0:00:23]}  Rd4+ {[%clk 0:00:27]} 31. Kg3 {[%clk 0:00:18]}  Nxg5 {[%clk 0:00:25]} 32. hxg5 {[%clk 0:00:19]}  Rd3+ {[%clk 0:00:24]} 33. Kf4 {[%clk 0:00:17]}  Rd4+ {[%clk 0:00:24]} 34. Kg3 {[%clk 0:00:15]}  Bd7 {[%clk 0:00:23]} 35. Re4 {[%clk 0:00:11]}  Rd3+ {[%clk 0:00:22]} 36. Kf4 {[%clk 0:00:12]}  Be6 {[%clk 0:00:21]} 37. a3 {[%clk 0:00:10]}  Ke8 {[%clk 0:00:21]} 38. Ne2 {[%clk 0:00:10]}  Rd2 {[%clk 0:00:18]} 39. Nd4 {[%clk 0:00:08]}  Kd7 {[%clk 0:00:18]} 40. b4 {[%clk 0:00:07]}  Bd5 {[%clk 0:00:14]} 41. Re5 {[%clk 0:00:06]}  Kd6 {[%clk 0:00:13]} 42. Re8 {[%clk 0:00:00]}  Rxd4+ {[%clk 0:00:13]} 0-1


[Site "https://www.chess.com"]

[Event "Titled Tuesday Blitz August 15 Late 2023"]
[White "Peycheva, Gergana"]
[Black "Goltsev, Dmitry"]
[WhiteFideId "2916711"]
[BlackFideId "24176710"]
[WhiteElo "2513"]
[BlackElo "2640"]
[Result "1-0"]
[Round "7"]
[TimeControl "180+1"]
[Date "2023.08.15"]
[WhiteClock "0:00:10"]
[BlackClock "0:00:02"]
[Board "49"]

1. d4 {[%clk 0:03:00]}  f5 {[%clk 0:02:59]} 2. g3 {[%clk 0:02:56]}  Nf6 {[%clk 0:02:56]} 3. Bg2 {[%clk 0:02:56]}  h6 {[%clk 0:02:55]} 4. e4 {[%clk 0:02:44]}  d6 {[%clk 0:02:51]} 5. exf5 {[%clk 0:02:37]}  c6 {[%clk 0:02:49]} 6. g4 {[%clk 0:02:30]}  e6 {[%clk 0:02:48]} 7. fxe6 {[%clk 0:02:27]}  Bxe6 {[%clk 0:02:49]} 8. h3 {[%clk 0:02:26]}  Na6 {[%clk 0:02:37]} 9. Ne2 {[%clk 0:02:24]}  Qa5+ {[%clk 0:02:35]} 10. c3 {[%clk 0:02:10]}  O-O-O {[%clk 0:02:34]} 11. O-O {[%clk 0:01:56]}  g5 {[%clk 0:02:27]} 12. b3 {[%clk 0:01:43]}  h5 {[%clk 0:02:21]} 13. f3 {[%clk 0:01:37]}  hxg4 {[%clk 0:02:16]} 14. fxg4 {[%clk 0:01:36]}  Nxg4 {[%clk 0:01:57]} 15. hxg4 {[%clk 0:01:32]}  Bxg4 {[%clk 0:01:57]} 16. Qd3 {[%clk 0:01:28]}  Be7 {[%clk 0:01:52]} 17. Ng3 {[%clk 0:01:24]}  Nc7 {[%clk 0:01:36]} 18. b4 {[%clk 0:01:16]}  Qb6 {[%clk 0:01:31]} 19. a4 {[%clk 0:01:10]}  Nd5 {[%clk 0:01:26]} 20. a5 {[%clk 0:01:07]}  Qc7 {[%clk 0:01:25]} 21. a6 {[%clk 0:00:46]}  b6 {[%clk 0:01:21]} 22. Qe4 {[%clk 0:00:39]}  Rh4 {[%clk 0:01:14]} 23. Nf5 {[%clk 0:00:36]}  Rdh8 {[%clk 0:00:44]} 24. Nxh4 {[%clk 0:00:31]}  Rxh4 {[%clk 0:00:45]} 25. Qg6 {[%clk 0:00:27]}  Qd7 {[%clk 0:00:31]} 26. Bxg5 {[%clk 0:00:19]}  Bxg5 {[%clk 0:00:12]} 27. Qxg5 {[%clk 0:00:20]}  Rh8 {[%clk 0:00:11]} 28. Bxd5 {[%clk 0:00:14]}  Be6 {[%clk 0:00:02]} 29. Bxe6 {[%clk 0:00:13]}  Qxe6 {[%clk 0:00:03]} 30. Qf5 {[%clk 0:00:06]}  Rg8+ {[%clk 0:00:03]} 31. Kh2 {[%clk 0:00:05]}  Rh8+ {[%clk 0:00:04]} 32. Kg3 {[%clk 0:00:04]}  Rg8+ {[%clk 0:00:04]} 33. Kf4 {[%clk 0:00:02]}  Qxf5+ {[%clk 0:00:04]} 34. Kxf5 {[%clk 0:00:03]}  Rf8+ {[%clk 0:00:05]} 35. Ke4 {[%clk 0:00:03]}  Rxf1 {[%clk 0:00:06]} 36. Kd3 {[%clk 0:00:02]}  Kd7 {[%clk 0:00:06]} 37. Kc2 {[%clk 0:00:03]}  d5 {[%clk 0:00:05]} 38. Ra3 {[%clk 0:00:03]}  Rf2+ {[%clk 0:00:05]} 39. Nd2 {[%clk 0:00:04]}  Kd6 {[%clk 0:00:05]} 40. Kd3 {[%clk 0:00:05]}  b5 {[%clk 0:00:05]} 41. Ra1 {[%clk 0:00:06]}  Kc7 {[%clk 0:00:05]} 42. Rh1 {[%clk 0:00:06]}  Kb6 {[%clk 0:00:05]} 43. Rh7 {[%clk 0:00:07]}  Kxa6 {[%clk 0:00:05]} 44. Nb3 {[%clk 0:00:08]}  Rf3+ {[%clk 0:00:02]} 45. Kc2 {[%clk 0:00:08]}  Rf2+ {[%clk 0:00:02]} 46. Kb1 {[%clk 0:00:08]}  Rf1+ {[%clk 0:00:03]} 47. Kb2 {[%clk 0:00:09]}  Rf2+ {[%clk 0:00:03]} 48. Ka3 {[%clk 0:00:09]}  Kb6 {[%clk 0:00:02]} 49. Nc5 {[%clk 0:00:10]}  a5 {[%clk 0:00:02]} 50. Rb7# {[%clk 0:00:10]} 1-0


[Site "https://www.chess.com"]

[Event "Titled Tuesday Blitz August 15 Late 2023"]
[White "Janaszak, Dawid"]
[Black "Valenzuela Gomez, Fernando"]
[WhiteFideId "1119206"]
[BlackFideId "3409392"]
[WhiteElo "2504"]
[BlackElo "2631"]
[Result "0-1"]
[Round "7"]
[TimeControl "180+1"]
[Date "2023.08.15"]
[WhiteClock "0:00:00"]
[BlackClock "0:00:38"]
[Board "50"]

1. e4 {[%clk 0:03:00]}  d6 {[%clk 0:03:00]} 2. Nc3 {[%clk 0:02:59]}  Nf6 {[%clk 0:03:00]} 3. g3 {[%clk 0:02:58]}  d5 {[%clk 0:02:59]} 4. exd5 {[%clk 0:02:58]}  Nxd5 {[%clk 0:02:58]} 5. Bg2 {[%clk 0:02:58]}  Nxc3 {[%clk 0:02:57]} 6. bxc3 {[%clk 0:02:59]}  g6 {[%clk 0:02:56]} 7. Nf3 {[%clk 0:02:56]}  Bg7 {[%clk 0:02:57]} 8. O-O {[%clk 0:02:56]}  O-O {[%clk 0:02:58]} 9. d4 {[%clk 0:02:56]}  c5 {[%clk 0:02:58]} 10. Re1 {[%clk 0:02:54]}  Nc6 {[%clk 0:02:59]} 11. Bg5 {[%clk 0:02:48]}  h6 {[%clk 0:02:55]} 12. Be3 {[%clk 0:02:45]}  Bg4 {[%clk 0:02:49]} 13. h3 {[%clk 0:02:38]}  Bxf3 {[%clk 0:02:49]} 14. Qxf3 {[%clk 0:02:38]}  cxd4 {[%clk 0:02:49]} 15. cxd4 {[%clk 0:02:39]}  Nxd4 {[%clk 0:02:50]} 16. Bxd4 {[%clk 0:02:25]}  Qxd4 {[%clk 0:02:51]} 17. Rab1 {[%clk 0:02:17]}  e6 {[%clk 0:02:44]} 18. Rxb7 {[%clk 0:02:15]}  Rac8 {[%clk 0:02:40]} 19. Rd1 {[%clk 0:02:08]}  Qf6 {[%clk 0:02:37]} 20. Rxa7 {[%clk 0:01:54]}  Rxc2 {[%clk 0:02:29]} 21. Qxf6 {[%clk 0:01:54]}  Bxf6 {[%clk 0:02:30]} 22. a4 {[%clk 0:01:51]}  Bd8 {[%clk 0:02:15]} 23. Rb7 {[%clk 0:01:14]}  Ra2 {[%clk 0:02:10]} 24. Rd4 {[%clk 0:01:11]}  Bf6 {[%clk 0:02:03]} 25. Rf4 {[%clk 0:01:08]}  Kg7 {[%clk 0:02:04]} 26. Bc6 {[%clk 0:01:03]}  Rc8 {[%clk 0:01:58]} 27. Bd7 {[%clk 0:00:57]}  Rc1+ {[%clk 0:01:59]} 28. Kg2 {[%clk 0:00:57]}  Re1 {[%clk 0:01:59]} 29. Be8 {[%clk 0:00:55]}  Bc3 {[%clk 0:01:33]} 30. Rbxf7+ {[%clk 0:00:51]}  Kh8 {[%clk 0:01:32]} 31. Rf8+ {[%clk 0:00:50]}  Kh7 {[%clk 0:01:32]} 32. R8f7+ {[%clk 0:00:34]}  Bg7 {[%clk 0:01:31]} 33. Rc4 {[%clk 0:00:33]}  Kg8 {[%clk 0:01:28]} 34. Rcc7 {[%clk 0:00:32]}  Bd4 {[%clk 0:01:24]} 35. Rcd7 {[%clk 0:00:30]}  Rd1 {[%clk 0:01:10]} 36. Rd8 {[%clk 0:00:27]}  Rdd2 {[%clk 0:01:03]} 37. g4 {[%clk 0:00:19]}  Rxf2+ {[%clk 0:00:59]} 38. Rxf2 {[%clk 0:00:19]}  Rxf2+ {[%clk 0:01:00]} 39. Kg3 {[%clk 0:00:19]}  Rd2 {[%clk 0:00:58]} 40. Bxg6+ {[%clk 0:00:18]}  Kg7 {[%clk 0:00:58]} 41. Kf3 {[%clk 0:00:06]}  Kxg6 {[%clk 0:00:54]} 42. Ke4 {[%clk 0:00:06]}  e5 {[%clk 0:00:48]} 43. h4 {[%clk 0:00:06]}  Re2+ {[%clk 0:00:48]} 44. Kf3 {[%clk 0:00:03]}  Re3+ {[%clk 0:00:48]} 45. Kg2 {[%clk 0:00:04]}  Ra3 {[%clk 0:00:46]} 46. Rd6+ {[%clk 0:00:04]}  Kg7 {[%clk 0:00:46]} 47. h5 {[%clk 0:00:04]}  Rxa4 {[%clk 0:00:44]} 48. Kf3 {[%clk 0:00:04]}  Ra3+ {[%clk 0:00:41]} 49. Ke4 {[%clk 0:00:03]}  Re3+ {[%clk 0:00:41]} 50. Kf5 {[%clk 0:00:03]}  Rf3+ {[%clk 0:00:40]} 51. Ke6 {[%clk 0:00:00]}  Rf6+ {[%clk 0:00:38]} 0-1


[Site "https://www.chess.com"]